[Event "EYCC Open-U14 2019"]
[Site "Bratislava"]
[Date "2019.08.04"]
[Round "3.10"]
[White "Biletskiy, Danylo"]
[Black "Razafindratsima, Timothe"]
[Result "0-1"]
[ECO "A37"]
[WhiteElo "2105"]
[BlackElo "2178"]
[Annotator "NA"]
[PlyCount "70"]
[EventDate "2019.08.02"]
[EventType "swiss"]
[EventCountry "SVK"]
[SourceTitle "playchess.com"]
[Source "ChessBase"]
[SourceQuality "1"]
[TimeControl "40/5400+30:1800+30"]

1. Nf3 {[%emt 0:00:00]} c5 {[%emt 0:00:00]} 2. c4 {[%emt 0:00:01]} Nc6 {[%emt 0:00:00]} 3. g3 {[%emt 0:01:03]} g6 {[%emt 0:00:03]} 4. Bg2 {[%emt 0:01:48]} Bg7 {[%emt 0:00:49]} 5. Nc3 {[%emt 0:00:06]} e6 {[%emt 0:00:17]} 6. d3 {[%emt 0:00:06]} Nge7 {[%emt 0:00:05]} 7. Bg5 {[%emt 0:00:07]} h6 {[%emt 0:00:04]} 8. Bd2 {[%emt 0:01:39]} d5 {[%emt 0:00:05]} 9. Qc1 {[%emt 0:04:37]} b6 {[%emt 0:00:17]} 10. Rb1 {[%emt 0:00:19]} Bb7 {[%emt 0:00:08]} 11. a3 {[%emt 0:00:54]} Rc8 {[%emt 0:00:12]} 12. O-O {[%emt 0:07:13]} Nd4 {[%emt 0:00:16]} 13. Nxd4 {[%emt 0:06:01]} cxd4 {[%emt 0:00:06]} 14. Na2 {[%emt 0:03:37]} h5 {[%emt 0:01:04]} 15. h4 {[%emt 0:01:45]} Qd7 {[%emt 0:00:19]} 16. b3 {[%emt 0:01:12]} a5 {[%emt 0:01:14]} 17. b4 {[%emt 0:11:21]} dxc4 {[%emt 0:04:11]} 18. Bxb7 {[%emt 0:00:01]} Qxb7 {[%emt 0:00:08]} 19. dxc4 {[%emt 0:00:07]} Qa6 {[%emt 0:01:53]} 20. bxa5 {[%emt 0:15:02]} bxa5 {[%emt 0:04:23]} 21. Rb5 {[%emt 0:01:08]} Nc6 {[%emt 0:01:12]} 22. Qc2 {[%emt 0:08:12]} O-O {[%emt 0:03:34]} 23. Qa4 {[%emt 0:00:03]} d3 {[%emt 0:00:42]} 24. Nb4 {[%emt 0:03:03]} Nxb4 {[%emt 0:03:31]} 25. Bxb4 {[%emt 0:02:03]} dxe2 {[%emt 0:00:09]} 26. Re1 {[%emt 0:03:07]} Rfd8 {[%emt 0:15:31]} 27. Rxe2 {[%emt 0:10:33]} Rxc4 {[%emt 0:00:33]} 28. Qxa5 {[%emt 0:00:15]} Rd1+ {[%emt 0:02:44]} 29. Kh2 {[%emt 0:03:28]} Qc6 {[%emt 0:01:02]} 30. Re1 {[%emt 0:00:23]} Rc2 {[%emt 0:04:36]} 31. Rb8+ {[%emt 0:06:26]} Kh7 {[%emt 0:00:12]} 32. Qa7 {[%emt 0:00:16]} Qf3 {[%emt 0:02:02]} 33. Rxd1 {[%emt 0:00:02]} Rxf2+ {[%emt 0:00:17]} 34. Qxf2 {[%emt 0:00:08]} Qxf2+ {[%emt 0:00:03]} 35. Kh3 {[%emt 0:00:01]} Be5 {[%emt 0:00:06]} 0-1

[Event "EYCC Open-U14 2019"]
[Site "Bratislava"]
[Date "2019.08.04"]
[Round "3.11"]
[White "Laptii, Nazar"]
[Black "Kirillov, Dmitry"]
[Result "1/2-1/2"]
[ECO "B40"]
[WhiteElo "2133"]
[BlackElo "2244"]
[Annotator "NA"]
[PlyCount "106"]
[EventDate "2019.08.02"]
[EventType "swiss"]
[EventCountry "SVK"]
[SourceTitle "playchess.com"]
[Source "ChessBase"]
[SourceQuality "1"]
[TimeControl "40/5400+30:1800+30"]

1. e4 {[%emt 0:00:00]} c5 {[%emt 0:00:00]} 2. Nf3 {[%emt 0:00:00]} e6 {[%emt 0:00:00]} 3. d3 {[%emt 0:00:00]} d5 {[%emt 0:00:00]} 4. Nbd2 {[%emt 0:00:00]} Bd6 {[%emt 0:00:00]} 5. g3 {[%emt 0:00:00]} Ne7 {[%emt 0:00:00]} 6. Bg2 {[%emt 0:00:06]} Nbc6 {[%emt 0:00:00]} 7. O-O {[%emt 0:00:10]} O-O {[%emt 0:00:00]} 8. Re1 {[%emt 0:01:07]} b6 {[%emt 0:00:03]} 9. b3 {[%emt 0:02:02]} d4 {[%emt 0:11:24]} 10. a4 {[%emt 0:00:40]} e5 {[%emt 0:02:20]} 11. Rf1 {[%emt 0:00:17]} f6 {[%emt 0:17:17]} 12. Nc4 {[%emt 0:02:02]} Bc7 {[%emt 0:01:07]} 13. Nh4 {[%emt 0:00:42]} Be6 {[%emt 0:05:30]} 14. f4 {[%emt 0:00:47]} exf4 {[%emt 0:00:48]} 15. gxf4 {[%emt 0:10:02]} Qd7 {[%emt 0:02:06]} 16. Bd2 {[%emt 0:06:14]} Bh3 {[%emt 0:17:38]} 17. Rf2 {[%emt 0:16:52]} Qg4 {[%emt 0:09:25]} 18. Qxg4 {[%emt 0:04:29]} Bxg4 {[%emt 0:00:59]} 19. Bf3 {[%emt 0:00:56]} Bxf3 {[%emt 0:02:06]} 20. Rxf3 {[%emt 0:00:13]} a6 {[%emt 0:02:48]} 21. Kf2 {[%emt 0:18:46]} b5 {[%emt 0:00:48]} 22. Nb2 {[%emt 0:00:07]} Nb4 {[%emt 0:03:24]} 23. Bxb4 {[%emt 0:04:01]} cxb4 {[%emt 0:00:05]} 24. Ke2 {[%emt 0:00:55]} h6 {[%emt 0:01:01]} 25. Raf1 {[%emt 0:04:11]} g5 {[%emt 0:02:18]} 26. fxg5 {[%emt 0:11:45]} hxg5 {[%emt 0:00:20]} 27. Nf5 {[%emt 0:00:48]} Ng6 {[%emt 0:00:41]} 28. h4 {[%emt 0:03:27]} Nxh4 {[%emt 0:14:57]} 29. Nxh4 {[%emt 0:07:13]} gxh4 {[%emt 0:00:05]} 30. Nd1 {[%emt 0:00:15]} Bg3 {[%emt 0:01:04]} 31. Nf2 {[%emt 0:01:48]} Rac8 {[%emt 0:00:03]} 32. Kd1 {[%emt 0:00:08]} bxa4 {[%emt 0:01:54]} 33. bxa4 {[%emt 0:00:21]} Rc6 {[%emt 0:02:13]} 34. Ng4 {[%emt 0:02:35]} Rfc8 {[%emt 0:00:13]} 35. Nxf6+ {[%emt 0:01:16]} Kh8 {[%emt 0:00:05]} 36. Nh5 {[%emt 0:00:42]} b3 {[%emt 0:01:25]} 37. Rf8+ {[%emt 0:01:27]} Kh7 {[%emt 0:00:27]} 38. Rxc8 {[%emt 0:01:00]} bxc2+ {[%emt 0:00:09]} 39. Kc1 {[%emt 0:00:08]} Rxc8 {[%emt 0:00:05]} 40. Nxg3 {[%emt 0:00:00]} hxg3 {[%emt 0:00:00]} 41. Rh1+ {[%emt 0:00:26]} Kg6 {[%emt 0:00:42]} 42. Rg1 {[%emt 0:04:55]} Kg5 {[%emt 0:00:08]} 43. Rxg3+ {[%emt 0:02:38]} Kf4 {[%emt 0:00:06]} 44. Rg2 {[%emt 0:03:31]} Rc3 {[%emt 0:01:36]} 45. Rxc2 {[%emt 0:03:25]} Rxd3 {[%emt 0:00:27]} 46. Rc6 {[%emt 0:00:36]} Ra3 {[%emt 0:00:54]} 47. Rxa6 {[%emt 0:02:08]} Ke3 {[%emt 0:00:31]} 48. Rh6 {[%emt 0:04:05]} d3 {[%emt 0:00:19]} 49. Rh3+ {[%emt 0:01:14]} Kd4 {[%emt 0:01:00]} 50. Rh8 {[%emt 0:01:02]} Ra1+ {[%emt 0:01:30]} 51. Kd2 {[%emt 0:00:07]} Ra2+ {[%emt 0:00:30]} 52. Kd1 {[%emt 0:00:16]} Rxa4 {[%emt 0:00:14]} 53. e5 {[%emt 0:00:12]} Ra1+ {[%emt 0:00:03]} 1/2-1/2

[Event "EYCC Open-U14 2019"]
[Site "Bratislava"]
[Date "2019.08.04"]
[Round "3.12"]
[White "Rozen, Eytan"]
[Black "Trofimov, Pavel"]
[Result "1/2-1/2"]
[ECO "A37"]
[WhiteElo "2260"]
[BlackElo "2151"]
[Annotator "NA"]
[PlyCount "137"]
[EventDate "2019.08.02"]
[EventType "swiss"]
[EventCountry "SVK"]
[SourceTitle "playchess.com"]
[Source "ChessBase"]
[SourceQuality "1"]
[TimeControl "40/5400+30:1800+30"]

1. c4 {[%emt 0:00:18]} c5 {[%emt 0:00:42]} 2. Nf3 {[%emt 0:00:32]} Nc6 {[%emt 0:00:10]} 3. Nc3 {[%emt 0:00:37]} g6 {[%emt 0:00:05]} 4. g3 {[%emt 0:01:13]} Bg7 {[%emt 0:00:07]} 5. Bg2 {[%emt 0:00:17]} e6 {[%emt 0:00:37]} 6. O-O {[%emt 0:01:59]} Nge7 {[%emt 0:00:08]} 7. e3 {[%emt 0:03:14]} O-O {[%emt 0:03:04]} 8. d4 {[%emt 0:01:14]} cxd4 {[%emt 0:05:10]} 9. exd4 {[%emt 0:08:03]} d5 {[%emt 0:01:37]} 10. cxd5 {[%emt 0:00:52]} exd5 {[%emt 0:02:52]} 11. Be3 {[%emt 0:08:48]} Be6 {[%emt 0:06:55]} 12. Rc1 {[%emt 0:11:10]} Nf5 {[%emt 0:07:48]} 13. Na4 {[%emt 0:08:40]} Nxe3 {[%emt 0:07:33]} 14. fxe3 {[%emt 0:00:08]} Qe7 {[%emt 0:00:45]} 15. Re1 {[%emt 0:03:17]} Rac8 {[%emt 0:02:55]} 16. Nc5 {[%emt 0:05:44]} Rfe8 {[%emt 0:05:48]} 17. Nxe6 {[%emt 0:05:17]} Qxe6 {[%emt 0:01:57]} 18. Ng5 {[%emt 0:09:34]} Qe7 {[%emt 0:06:27]} 19. Nh3 {[%emt 0:01:49]} Qb4 {[%emt 0:10:59]} 20. Bxd5 {[%emt 0:13:44]} Bxd4 {[%emt 0:11:33]} 21. Bxf7+ {[%emt 0:08:25]} Kxf7 {[%emt 0:00:04]} 22. exd4 {[%emt 0:00:16]} Qxd4+ {[%emt 0:03:17]} 23. Qxd4 {[%emt 0:00:12]} Nxd4 {[%emt 0:00:01]} 24. Rf1+ {[%emt 0:03:22]} Kg8 {[%emt 0:00:42]} 25. Rxc8 {[%emt 0:00:24]} Rxc8 {[%emt 0:00:06]} 26. Rd1 {[%emt 0:01:03]} Nf3+ {[%emt 0:00:43]} 27. Kg2 {[%emt 0:00:33]} Ne5 {[%emt 0:00:13]} 28. Rd2 {[%emt 0:01:35]} Nc4 {[%emt 0:02:09]} 29. Re2 {[%emt 0:00:27]} Rd8 {[%emt 0:00:48]} 30. b3 {[%emt 0:01:19]} Rd2 {[%emt 0:00:39]} 31. Kf2 {[%emt 0:00:36]} Rxe2+ {[%emt 0:00:13]} 32. Kxe2 {[%emt 0:00:00]} Ne5 {[%emt 0:00:10]} 33. Ng5 {[%emt 0:00:48]} Kg7 {[%emt 0:00:44]} 34. h3 {[%emt 0:00:48]} h6 {[%emt 0:00:33]} 35. Ne4 {[%emt 0:00:24]} b6 {[%emt 0:01:00]} 36. Ke3 {[%emt 0:00:26]} Kf7 {[%emt 0:00:34]} 37. Nd6+ {[%emt 0:00:40]} Ke6 {[%emt 0:00:08]} 38. Nb5 {[%emt 0:00:23]} a5 {[%emt 0:00:40]} 39. Ke4 {[%emt 0:00:30]} Nf7 {[%emt 0:02:48]} 40. Nd4+ {[%emt 0:00:00]} Kd6 {[%emt 0:00:00]} 41. h4 {[%emt 0:05:21]} Ne5 {[%emt 0:02:11]} 42. Nb5+ {[%emt 0:03:01]} Ke6 {[%emt 0:01:33]} 43. Nc7+ {[%emt 0:00:47]} Kd6 {[%emt 0:00:12]} 44. Ne8+ {[%emt 0:00:35]} Ke6 {[%emt 0:00:13]} 45. Ng7+ {[%emt 0:00:25]} Kf6 {[%emt 0:00:56]} 46. Ne8+ {[%emt 0:02:25]} Ke6 {[%emt 0:00:16]} 47. Nc7+ {[%emt 0:05:41]} Kd6 {[%emt 0:00:08]} 48. Nb5+ {[%emt 0:01:27]} Ke6 {[%emt 0:00:05]} 49. Nd4+ {[%emt 0:00:12]} Kd6 {[%emt 0:00:05]} 50. h5 {[%emt 0:01:19]} gxh5 {[%emt 0:01:05]} 51. Nf5+ {[%emt 0:00:10]} Ke6 {[%emt 0:00:07]} 52. Ng7+ {[%emt 0:00:08]} Kf6 {[%emt 0:01:42]} 53. Nxh5+ {[%emt 0:00:30]} Kg5 {[%emt 0:00:16]} 54. Kxe5 {[%emt 0:09:15]} Kxh5 {[%emt 0:00:05]} 55. Kf5 {[%emt 0:02:25]} b5 {[%emt 0:00:36]} 56. Kf4 {[%emt 0:01:54]} Kg6 {[%emt 0:00:35]} 57. Kg4 {[%emt 0:01:47]} b4 {[%emt 0:00:59]} 58. Kh4 {[%emt 0:01:11]} h5 {[%emt 0:00:22]} 59. g4 {[%emt 0:00:37]} hxg4 {[%emt 0:00:04]} 60. Kxg4 {[%emt 0:00:15]} Kf6 {[%emt 0:00:05]} 61. Kf4 {[%emt 0:00:44]} Ke6 {[%emt 0:00:09]} 62. Ke4 {[%emt 0:00:06]} Kd6 {[%emt 0:00:03]} 63. Kd4 {[%emt 0:00:06]} Kc6 {[%emt 0:00:14]} 64. Kc4 {[%emt 0:00:14]} Kb6 {[%emt 0:00:05]} 65. Kd5 {[%emt 0:00:07]} Kb5 {[%emt 0:00:06]} 66. Ke6 {[%emt 0:00:33]} Kc6 {[%emt 0:00:03]} 67. Ke7 {[%emt 0:00:50]} Kc7 {[%emt 0:00:13]} 68. Ke8 {[%emt 0:00:25]} Kc8 {[%emt 0:00:08]} 69. Ke7 {[%emt 0:00:05]} 1/2-1/2

[Event "EYCC Open-U14 2019"]
[Site "Bratislava"]
[Date "2019.08.04"]
[Round "3.13"]
[White "Papadiamandis, Elliot"]
[Black "Sahakyan, Aleks"]
[Result "0-1"]
[ECO "B90"]
[WhiteElo "2202"]
[BlackElo "1856"]
[Annotator "NA"]
[PlyCount "92"]
[EventDate "2019.08.02"]
[EventType "swiss"]
[EventCountry "SVK"]
[SourceTitle "playchess.com"]
[Source "ChessBase"]
[SourceQuality "1"]
[TimeControl "40/5400+30:1800+30"]

1. e4 {[%emt 0:00:00]} c5 {[%emt 0:00:00]} 2. Nf3 {[%emt 0:00:00]} d6 {[%emt 0:00:00]} 3. d4 {[%emt 0:00:14]} cxd4 {[%emt 0:00:00]} 4. Nxd4 {[%emt 0:00:41]} Nf6 {[%emt 0:00:08]} 5. Nc3 {[%emt 0:00:26]} a6 {[%emt 0:00:08]} 6. f3 {[%emt 0:00:22]} e5 {[%emt 0:00:45]} 7. Nb3 {[%emt 0:00:25]} Be6 {[%emt 0:00:08]} 8. Be3 {[%emt 0:00:43]} h5 {[%emt 0:00:14]} 9. Qd2 {[%emt 0:00:32]} Nbd7 {[%emt 0:00:07]} 10. Nd5 {[%emt 0:00:27]} Bxd5 {[%emt 0:00:34]} 11. exd5 {[%emt 0:00:19]} g6 {[%emt 0:00:21]} 12. Be2 {[%emt 0:02:15]} Bg7 {[%emt 0:01:16]} 13. Na5 {[%emt 0:04:05]} Qc7 {[%emt 0:04:37]} 14. c4 {[%emt 0:00:26]} O-O {[%emt 0:01:09]} 15. O-O {[%emt 0:00:21]} e4 {[%emt 0:05:58]} 16. Rac1 {[%emt 0:01:48]} Rfe8 {[%emt 0:01:48]} 17. b4 {[%emt 0:03:39]} exf3 {[%emt 0:07:39]} 18. gxf3 {[%emt 0:01:01]} Re7 {[%emt 0:09:06]} 19. Bd1 {[%emt 0:29:16]} Rae8 {[%emt 0:07:38]} 20. Bg5 {[%emt 0:04:25]} Ne5 {[%emt 0:13:39]} 21. Ba4 {[%emt 0:06:02]} b5 {[%emt 0:02:18]} 22. cxb5 {[%emt 0:05:40]} Qb6+ {[%emt 0:00:04]} 23. Kh1 {[%emt 0:06:19]} axb5 {[%emt 0:00:16]} 24. Bb3 {[%emt 0:00:51]} Nxf3 {[%emt 0:05:08]} 25. Rxf3 {[%emt 0:07:09]} Re2 {[%emt 0:00:41]} 26. Qf4 {[%emt 0:07:41]} R8e4 {[%emt 0:00:42]} 27. Qg3 {[%emt 0:06:02]} Rg4 {[%emt 0:00:08]} 28. Qh3 {[%emt 0:04:01]} Rxg5 {[%emt 0:00:12]} 29. Qf1 {[%emt 0:01:54]} Rge5 {[%emt 0:01:45]} 30. Nc6 {[%emt 0:03:05]} Ng4 {[%emt 0:00:15]} 31. Qg1 {[%emt 0:00:32]} Rxh2+ {[%emt 0:01:31]} 32. Qxh2 {[%emt 0:00:02]} Nxh2 {[%emt 0:00:02]} 33. Kxh2 {[%emt 0:01:11]} Re2+ {[%emt 0:01:52]} 34. Kh1 {[%emt 0:00:01]} Be5 {[%emt 0:00:55]} 35. Nxe5 {[%emt 0:01:33]} Rxe5 {[%emt 0:00:09]} 36. Rcf1 {[%emt 0:01:18]} Qd4 {[%emt 0:01:29]} 37. Rf4 {[%emt 0:00:01]} Re4 {[%emt 0:00:31]} 38. Rxe4 {[%emt 0:00:23]} Qxe4+ {[%emt 0:00:01]} 39. Kg1 {[%emt 0:00:15]} Qxb4 {[%emt 0:00:05]} 40. Rf3 {[%emt 0:00:00]} h4 {[%emt 0:00:00]} 41. Kg2 {[%emt 0:00:51]} Qg4+ {[%emt 0:00:33]} 42. Kf2 {[%emt 0:00:01]} h3 {[%emt 0:00:12]} 43. Rg3 {[%emt 0:00:14]} Qf4+ {[%emt 0:00:05]} 44. Rf3 {[%emt 0:00:04]} Qd2+ {[%emt 0:00:04]} 45. Kg3 {[%emt 0:00:06]} Qg2+ {[%emt 0:00:06]} 46. Kf4 {[%emt 0:00:09]} h2 {[%emt 0:00:09]} 0-1

[Event "EYCC Open-U14 2019"]
[Site "Bratislava"]
[Date "2019.08.04"]
[Round "3.14"]
[White "Weihrauch, Jakob"]
[Black "Backiel, Hubert"]
[Result "1/2-1/2"]
[ECO "B34"]
[WhiteElo "2201"]
[BlackElo "1748"]
[Annotator "NA"]
[PlyCount "64"]
[EventDate "2019.08.02"]
[EventType "swiss"]
[EventCountry "SVK"]
[SourceTitle "playchess.com"]
[Source "ChessBase"]
[SourceQuality "1"]
[TimeControl "40/5400+30:1800+30"]

1. e4 {[%emt 0:00:00]} c5 {[%emt 0:00:00]} 2. Nf3 {[%emt 0:00:00]} Nc6 {[%emt 0:00:13]} 3. d4 {[%emt 0:00:04]} cxd4 {[%emt 0:00:10]} 4. Nxd4 {[%emt 0:00:04]} Nf6 {[%emt 0:00:21]} 5. Nc3 {[%emt 0:00:27]} e5 {[%emt 0:00:15]} 6. Ndb5 {[%emt 0:00:10]} d6 {[%emt 0:00:43]} 7. Nd5 {[%emt 0:01:13]} Nxd5 {[%emt 0:02:18]} 8. exd5 {[%emt 0:00:01]} Nb8 {[%emt 0:02:02]} 9. c4 {[%emt 0:00:20]} Be7 {[%emt 0:00:30]} 10. Be3 {[%emt 0:02:17]} O-O {[%emt 0:03:02]} 11. Bd3 {[%emt 0:00:48]} a6 {[%emt 0:00:25]} 12. Nc3 {[%emt 0:00:17]} f5 {[%emt 0:01:43]} 13. f3 {[%emt 0:03:52]} Nd7 {[%emt 0:11:54]} 14. Qd2 {[%emt 0:04:00]} Nf6 {[%emt 0:01:10]} 15. Na4 {[%emt 0:08:13]} e4 {[%emt 0:14:06]} 16. Be2 {[%emt 0:07:54]} f4 {[%emt 0:10:25]} 17. Bxf4 {[%emt 0:01:33]} Nh5 {[%emt 0:00:19]} 18. Be3 {[%emt 0:02:16]} Bh4+ {[%emt 0:04:18]} 19. Kd1 {[%emt 0:02:28]} exf3 {[%emt 0:16:24]} 20. Bxf3 {[%emt 0:02:33]} Qe8 {[%emt 0:00:12]} 21. Nb6 {[%emt 0:01:33]} Rb8 {[%emt 0:00:10]} 22. Qe2 {[%emt 0:02:37]} g6 {[%emt 0:00:17]} 23. Nxc8 {[%emt 0:08:34]} Rxc8 {[%emt 0:00:13]} 24. Bg4 {[%emt 0:12:14]} Rc7 {[%emt 0:04:15]} 25. Be6+ {[%emt 0:01:13]} Kh8 {[%emt 0:02:09]} 26. Rf1 {[%emt 0:07:54]} Bf6 {[%emt 0:01:54]} 27. Bh6 {[%emt 0:09:12]} Bg7 {[%emt 0:01:01]} 28. Rxf8+ {[%emt 0:07:19]} Qxf8 {[%emt 0:00:24]} 29. Bg5 {[%emt 0:02:49]} h6 {[%emt 0:04:32]} 30. Be3 {[%emt 0:00:36]} Nf4 {[%emt 0:00:19]} 31. Bxf4 {[%emt 0:06:17]} Qxf4 {[%emt 0:00:01]} 32. Rc1 {[%emt 0:00:37]} Qd4+ {[%emt 0:01:11]} 1/2-1/2

[Event "EYCC Open-U14 2019"]
[Site "Bratislava"]
[Date "2019.08.04"]
[Round "3.15"]
[White "Djurovic, Peko"]
[Black "Borhy, Marcell"]
[Result "0-1"]
[ECO "B75"]
[WhiteElo "2048"]
[BlackElo "2382"]
[Annotator "NA"]
[PlyCount "68"]
[EventDate "2019.08.02"]
[EventType "swiss"]
[EventCountry "SVK"]
[SourceTitle "playchess.com"]
[Source "ChessBase"]
[SourceQuality "1"]
[TimeControl "40/5400+30:1800+30"]

1. e4 {[%emt 0:00:00]} c5 {[%emt 0:00:00]} 2. Nf3 {[%emt 0:00:00]} d6 {[%emt 0:00:00]} 3. d4 {[%emt 0:00:05]} Nf6 {[%emt 0:00:22]} 4. Nc3 {[%emt 0:00:30]} cxd4 {[%emt 0:00:07]} 5. Nxd4 {[%emt 0:00:06]} g6 {[%emt 0:00:08]} 6. f3 {[%emt 0:01:18]} Bg7 {[%emt 0:00:29]} 7. Be3 {[%emt 0:00:36]} a6 {[%emt 0:00:17]} 8. Qd2 {[%emt 0:00:26]} Nbd7 {[%emt 0:00:18]} 9. O-O-O {[%emt 0:01:02]} b5 {[%emt 0:00:19]} 10. h4 {[%emt 0:02:17]} h5 {[%emt 0:04:35]} 11. Kb1 {[%emt 0:05:44]} Bb7 {[%emt 0:00:05]} 12. a3 {[%emt 0:00:28]} Rc8 {[%emt 0:01:12]} 13. Nb3 {[%emt 0:02:51]} Qc7 {[%emt 0:02:33]} 14. Be2 {[%emt 0:07:31]} d5 {[%emt 0:09:55]} 15. exd5 {[%emt 0:04:10]} Nxd5 {[%emt 0:06:01]} 16. Nxd5 {[%emt 0:00:13]} Bxd5 {[%emt 0:00:05]} 17. Bf4 {[%emt 0:04:20]} Qc6 {[%emt 0:18:13]} 18. Na5 {[%emt 0:00:25]} Qf6 {[%emt 0:02:00]} 19. c4 {[%emt 0:03:26]} bxc4 {[%emt 0:01:47]} 20. Bxc4 {[%emt 0:00:12]} Rxc4 {[%emt 0:02:57]} 21. Nxc4 {[%emt 0:01:56]} Qf5+ {[%emt 0:00:07]} 22. Qd3 {[%emt 0:05:12]} Qxd3+ {[%emt 0:00:15]} 23. Rxd3 {[%emt 0:00:03]} Bxc4 {[%emt 0:00:05]} 24. Re3 {[%emt 0:00:12]} Nb6 {[%emt 0:17:10]} 25. Rc1 {[%emt 0:01:44]} O-O {[%emt 0:01:38]} 26. b3 {[%emt 0:06:26]} Be6 {[%emt 0:00:27]} 27. Be5 {[%emt 0:03:48]} Bh6 {[%emt 0:01:36]} 28. f4 {[%emt 0:00:25]} Nd5 {[%emt 0:00:10]} 29. Rf3 {[%emt 0:00:04]} f6 {[%emt 0:03:35]} 30. Bb2 {[%emt 0:00:30]} Nxf4 {[%emt 0:01:15]} 31. Rc7 {[%emt 0:00:34]} Bd5 {[%emt 0:01:35]} 32. Rg3 {[%emt 0:01:17]} Be4+ {[%emt 0:05:29]} 33. Ka1 {[%emt 0:00:59]} Nd5 {[%emt 0:01:26]} 34. Rxg6+ {[%emt 0:02:11]} Bxg6 {[%emt 0:00:06]} 0-1

[Event "EYCC Open-U14 2019"]
[Site "Bratislava"]
[Date "2019.08.04"]
[Round "3.16"]
[White "Popov, Konstantin"]
[Black "Poltorak, Sebastian"]
[Result "1-0"]
[ECO "B33"]
[WhiteElo "2367"]
[BlackElo "2068"]
[Annotator "NA"]
[PlyCount "121"]
[EventDate "2019.08.02"]
[EventType "swiss"]
[EventCountry "SVK"]
[SourceTitle "playchess.com"]
[Source "ChessBase"]
[SourceQuality "1"]
[TimeControl "40/5400+30:1800+30"]

1. e4 {[%emt 0:00:00]} c5 {[%emt 0:00:00]} 2. Nf3 {[%emt 0:01:10]} Nc6 {[%emt 0:00:04]} 3. d4 {[%emt 0:01:15]} cxd4 {[%emt 0:00:11]} 4. Nxd4 {[%emt 0:00:07]} Nf6 {[%emt 0:00:09]} 5. Nc3 {[%emt 0:00:12]} e5 {[%emt 0:00:10]} 6. Ndb5 {[%emt 0:00:30]} d6 {[%emt 0:00:12]} 7. Bg5 {[%emt 0:00:51]} a6 {[%emt 0:00:09]} 8. Na3 {[%emt 0:00:12]} b5 {[%emt 0:00:10]} 9. Bxf6 {[%emt 0:00:33]} gxf6 {[%emt 0:00:15]} 10. Nd5 {[%emt 0:00:51]} f5 {[%emt 0:00:09]} 11. g3 {[%emt 0:01:05]} fxe4 {[%emt 0:00:49]} 12. Bg2 {[%emt 0:00:38]} Be6 {[%emt 0:01:26]} 13. Bxe4 {[%emt 0:01:16]} Rc8 {[%emt 0:05:52]} 14. c3 {[%emt 0:03:31]} Bg7 {[%emt 0:01:25]} 15. Qh5 {[%emt 0:04:05]} Ne7 {[%emt 0:01:56]} 16. Rd1 {[%emt 0:02:01]} Rc5 {[%emt 0:04:05]} 17. Nxe7 {[%emt 0:02:03]} Qxe7 {[%emt 0:00:38]} 18. Nc2 {[%emt 0:03:42]} d5 {[%emt 0:03:35]} 19. Bf5 {[%emt 0:00:34]} Bxf5 {[%emt 0:03:06]} 20. Qxf5 {[%emt 0:00:04]} Qe6 {[%emt 0:01:04]} 21. Ne3 {[%emt 0:06:20]} O-O {[%emt 0:08:06]} 22. O-O {[%emt 0:00:30]} Qxf5 {[%emt 0:13:40]} 23. Nxf5 {[%emt 0:00:03]} Rd8 {[%emt 0:07:42]} 24. Rd2 {[%emt 0:16:01]} d4 {[%emt 0:08:24]} 25. f4 {[%emt 0:15:36]} d3 {[%emt 0:05:27]} 26. fxe5 {[%emt 0:08:43]} Rxe5 {[%emt 0:00:23]} 27. Rf4 {[%emt 0:15:39]} Bf8 {[%emt 0:09:24]} 28. Nd4 {[%emt 0:09:16]} Re3 {[%emt 0:04:47]} 29. Kf2 {[%emt 0:01:56]} Rde8 {[%emt 0:00:42]} 30. Rf3 {[%emt 0:00:19]} Bh6 {[%emt 0:00:21]} 31. Rxd3 {[%emt 0:00:57]} Re1 {[%emt 0:00:16]} 32. Kg2 {[%emt 0:01:09]} Ra1 {[%emt 0:02:49]} 33. a3 {[%emt 0:02:02]} Rae1 {[%emt 0:11:52]} 34. Rf6 {[%emt 0:02:31]} Bg7 {[%emt 0:00:43]} 35. Rxa6 {[%emt 0:00:48]} Bxd4 {[%emt 0:00:20]} 36. cxd4 {[%emt 0:00:08]} R1e2+ {[%emt 0:00:28]} 37. Kh3 {[%emt 0:00:24]} Rxb2 {[%emt 0:00:20]} 38. d5 {[%emt 0:00:35]} Rd8 {[%emt 0:01:50]} 39. Rb6 {[%emt 0:00:48]} Kf8 {[%emt 0:00:40]} 40. d6 {[%emt 0:00:00]} Ke8 {[%emt 0:00:00]} 41. Rb7 {[%emt 0:00:58]} h6 {[%emt 0:02:38]} 42. g4 {[%emt 0:04:16]} Rb1 {[%emt 0:01:00]} 43. Kh4 {[%emt 0:00:42]} Rb2 {[%emt 0:01:26]} 44. h3 {[%emt 0:00:06]} Re2 {[%emt 0:00:19]} 45. Rxb5 {[%emt 0:00:37]} Re6 {[%emt 0:00:09]} 46. Rbd5 {[%emt 0:00:19]} Kd7 {[%emt 0:00:33]} 47. Rc5 {[%emt 0:01:06]} Ra8 {[%emt 0:00:57]} 48. Rc7+ {[%emt 0:00:24]} Ke8 {[%emt 0:00:08]} 49. d7+ {[%emt 0:10:43]} Kd8 {[%emt 0:00:10]} 50. Rb7 {[%emt 0:03:56]} Rea6 {[%emt 0:01:49]} 51. Rf3 {[%emt 0:00:12]} Ke7 {[%emt 0:00:45]} 52. Rf4 {[%emt 0:00:44]} Ke6 {[%emt 0:00:16]} 53. Rxf7 {[%emt 0:00:34]} Rc8 54. Rf3 Rd8 {[%emt 0:00:54]} 55. Rd3 {[%emt 0:01:38]} Ke7 {[%emt 0:00:21]} 56. Kh5 {[%emt 0:01:29]} Re6 {[%emt 0:00:32]} 57. Rc7 {[%emt 0:00:53]} Ra6 {[%emt 0:00:33]} 58. Rc8 {[%emt 0:01:12]} Rxd7 {[%emt 0:00:11]} 59. Rxd7+ {[%emt 0:00:03]} Kxd7 {[%emt 0:00:01]} 60. Rc3 {[%emt 0:00:14]} Ke7 {[%emt 0:01:41]} 61. Rf3 {[%emt 0:00:10]} 1-0